[Event "Chinese Championship-B Men 2024"]
[Site "Liaocheng"]
[Date "2024.04.24"]
[Round "5.11"]
[White "Li, Youjia"]
[Black "Zhu, Yilun"]
[Result "0-1"]
[WhiteElo "1779"]
[BlackElo "2125"]
[PlyCount "130"]
[EventDate "2024.04.24"]
[EventType "swiss"]
[EventCountry "CHN"]
[TimeControl "5400+30"]

1. e4 {[%emt 0:00:05]} c5 {[%emt 0:00:52]} 2. c3 {[%emt 0:00:29]} e5 {[%emt 0:00:06]} 3. Nf3 {[%emt 0:00:25]} Nc6 {[%emt 0:00:04]} 4. Bc4 {[%emt 0:00:02]} Qc7 {[%emt 0:00:05]} 5. O-O {[%emt 0:08:13]} Be7 {[%emt 0:00:06]} 6. a4 {[%emt 0:03:04]} Nf6 {[%emt 0:00:13]} 7. Qe2 {[%emt 0:02:50]} O-O {[%emt 0:00:35]} 8. Na3 {[%emt 0:01:09]} d6 {[%emt 0:01:07]} 9. Nc2 {[%emt 0:03:41]} Bd7 {[%emt 0:04:48]} 10. d3 {[%emt 0:05:11]} a6 {[%emt 0:00:42]} 11. Bg5 {[%emt 0:08:56]} h6 {[%emt 0:06:02]} 12. Bxf6 {[%emt 0:01:19]} Bxf6 {[%emt 0:01:09]} 13. Ne3 {[%emt 0:06:01]} Ne7 {[%emt 0:00:34]} 14. Nd2 {[%emt 0:13:06]} Bg5 {[%emt 0:11:53]} 15. g3 {[%emt 0:10:48]} b5 {[%emt 0:05:15]} 16. axb5 {[%emt 0:08:20]} axb5 {[%emt 0:02:02]} 17. Rxa8 {[%emt 0:01:16]} Rxa8 {[%emt 0:00:01]} 18. Bb3 {[%emt 0:00:38]} Rf8 {[%emt 0:24:39]} 19. f4 {[%emt 0:03:55]} exf4 {[%emt 0:00:27]} 20. gxf4 {[%emt 0:00:08]} Bf6 {[%emt 0:00:06]} 21. Nf3 {[%emt 0:06:02]} Nc6 {[%emt 0:02:13]} 22. Nd5 {[%emt 0:06:59]} Qd8 {[%emt 0:00:04]} 23. Qf2 {[%emt 0:01:12]} Re8 {[%emt 0:08:20]} 24. Re1 {[%emt 0:01:33]} Be6 {[%emt 0:02:32]} 25. Kh1 {[%emt 0:03:24]} c4 {[%emt 0:01:56]} 26. Bc2 {[%emt 0:01:41]} Bxd5 {[%emt 0:01:21]} 27. exd5 {[%emt 0:00:04]} Ne7 {[%emt 0:03:58]} 28. dxc4 {[%emt 0:00:20]} bxc4 {[%emt 0:00:01]} 29. Qe2 {[%emt 0:02:12]} Qb6 {[%emt 0:00:56]} 30. Qe4 {[%emt 0:01:46]} g6 {[%emt 0:00:23]} 31. f5 {[%emt 0:00:36]} g5 {[%emt 0:01:26]} 32. Qxc4 {[%emt 0:00:17]} Qxb2 {[%emt 0:00:46]} 33. Nd4 {[%emt 0:00:30]} Rc8 {[%emt 0:00:49]} 34. Qb3 {[%emt 0:00:42]} Qxc3 {[%emt 0:01:24]} 35. Qxc3 {[%emt 0:00:12]} Rxc3 {[%emt 0:00:02]} 36. Ba4 {[%emt 0:00:39]} Nxd5 {[%emt 0:01:47]} 37. Nb5 {[%emt 0:00:14]} Rc4 {[%emt 0:05:24]} 38. Bb3 {[%emt 0:00:08]} Rb4 {[%emt 0:00:04]} 39. Bxd5 {[%emt 0:00:09]} Rxb5 {[%emt 0:00:02]} 40. Rd1 {[%emt 0:01:10]} Be5 {[%emt 0:00:16]} 41. h3 {[%emt 0:01:01]} Kg7 {[%emt 0:00:39]} 42. Kg2 {[%emt 0:00:15]} Kf6 {[%emt 0:00:18]} 43. Be4 {[%emt 0:00:07]} Rb2+ {[%emt 0:00:19]} 44. Kf3 {[%emt 0:00:24]} Rh2 {[%emt 0:01:22]} 45. Rb1 {[%emt 0:01:11]} Rxh3+ {[%emt 0:00:11]} 46. Kf2 {[%emt 0:00:32]} Rh4 {[%emt 0:00:23]} 47. Kf3 {[%emt 0:00:32]} Rh2 {[%emt 0:00:55]} 48. Rb7 {[%emt 0:00:17]} Rb2 {[%emt 0:00:40]} 49. Rd7 {[%emt 0:00:23]} Rb5 {[%emt 0:01:18]} 50. Kg4 {[%emt 0:00:48]} h5+ {[%emt 0:00:19]} 51. Kf3 {[%emt 0:00:29]} g4+ {[%emt 0:00:05]} 52. Ke3 {[%emt 0:00:07]} h4 {[%emt 0:00:09]} 53. Bd3 {[%emt 0:00:27]} Rb4 {[%emt 0:00:31]} 54. Be4 {[%emt 0:00:20]} Rb3+ {[%emt 0:00:54]} 55. Ke2 {[%emt 0:00:10]} Rb5 {[%emt 0:02:32]} 56. Bd3 {[%emt 0:00:20]} Rc5 {[%emt 0:00:10]} 57. Bb1 {[%emt 0:00:14]} h3 {[%emt 0:00:03]} 58. Be4 {[%emt 0:01:14]} g3 {[%emt 0:00:10]} 59. Kf3 {[%emt 0:00:08]} g2 {[%emt 0:00:13]} 60. Kf2 {[%emt 0:00:08]} Bd4+ {[%emt 0:00:04]} 61. Kf3 {[%emt 0:00:08]} g1=Q {[%emt 0:00:21]} 62. Rxd6+ {[%emt 0:00:05]} Ke5 {[%emt 0:00:15]} 63. Rd5+ {[%emt 0:00:37]} Rxd5 {[%emt 0:00:07]} 64. Ke2 {[%emt 0:00:41]} Qf2+ {[%emt 0:00:24]} 65. Kd3 {[%emt 0:00:38]} Rc5 {[%emt 0:00:15]} 0-1

[Event "Chinese Championship-B Men 2024"]
[Site "Liaocheng"]
[Date "2024.04.24"]
[Round "5.12"]
[White "Chen, Zimu(Js)"]
[Black "Pan, Shi Tian Yu"]
[Result "1-0"]
[WhiteElo "2075"]
[BlackElo "2166"]
[PlyCount "139"]
[EventDate "2024.04.24"]
[EventType "swiss"]
[EventCountry "CHN"]
[TimeControl "5400+30"]

1. e4 {[%emt 0:00:04]} e5 {[%emt 0:00:07]} 2. Nf3 {[%emt 0:00:40]} Nc6 {[%emt 0:00:06]} 3. Nc3 {[%emt 0:00:31]} Nf6 {[%emt 0:01:55]} 4. Bb5 {[%emt 0:00:24]} d6 {[%emt 0:04:26]} 5. d4 {[%emt 0:00:52]} exd4 {[%emt 0:00:07]} 6. Nxd4 {[%emt 0:01:03]} Bd7 {[%emt 0:00:06]} 7. Bxc6 {[%emt 0:00:05]} Bxc6 {[%emt 0:00:40]} 8. Nxc6 {[%emt 0:02:06]} bxc6 {[%emt 0:00:05]} 9. O-O {[%emt 0:00:06]} Be7 {[%emt 0:00:50]} 10. Qf3 {[%emt 0:02:00]} Nd7 {[%emt 0:01:03]} 11. Ne2 {[%emt 0:00:33]} O-O {[%emt 0:05:34]} 12. Nd4 {[%emt 0:05:00]} c5 {[%emt 0:06:01]} 13. Nc6 {[%emt 0:09:14]} Qe8 {[%emt 0:00:07]} 14. Nxe7+ {[%emt 0:00:05]} Qxe7 {[%emt 0:00:05]} 15. Bd2 {[%emt 0:00:05]} Rfe8 {[%emt 0:00:18]} 16. Rfe1 {[%emt 0:01:24]} Qf6 {[%emt 0:10:19]} 17. Qxf6 {[%emt 0:01:49]} Nxf6 {[%emt 0:00:07]} 18. f3 {[%emt 0:00:05]} Nd7 {[%emt 0:01:22]} 19. Ba5 {[%emt 0:02:43]} Nb6 {[%emt 0:01:10]} 20. Rad1 {[%emt 0:02:06]} f6 {[%emt 0:02:26]} 21. Kf2 {[%emt 0:01:16]} Kf7 {[%emt 0:00:14]} 22. g4 {[%emt 0:05:57]} g6 {[%emt 0:04:49]} 23. Rg1 {[%emt 0:02:07]} Re7 {[%emt 0:02:23]} 24. b3 {[%emt 0:02:12]} Rae8 {[%emt 0:01:09]} 25. Rd2 {[%emt 0:05:57]} Rh8 {[%emt 0:13:57]} 26. g5 {[%emt 0:06:02]} fxg5 {[%emt 0:07:25]} 27. Rxg5 {[%emt 0:00:05]} Ke6 {[%emt 0:02:26]} 28. h4 {[%emt 0:02:22]} Rf7 {[%emt 0:01:11]} 29. h5 {[%emt 0:01:30]} Rhf8 {[%emt 0:00:48]} 30. Rd3 {[%emt 0:00:35]} gxh5 {[%emt 0:02:57]} 31. Rxh5 {[%emt 0:01:03]} Ke7 {[%emt 0:07:56]} 32. c4 {[%emt 0:02:17]} Rg8 {[%emt 0:01:44]} 33. Rh6 {[%emt 0:02:15]} Ke8 {[%emt 0:02:15]} 34. e5 {[%emt 0:08:57]} Nc8 {[%emt 0:04:21]} 35. Bc3 {[%emt 0:06:39]} Rg6 {[%emt 0:01:19]} 36. Rxg6 {[%emt 0:01:47]} hxg6 {[%emt 0:00:06]} 37. Re3 {[%emt 0:00:02]} Ne7 {[%emt 0:01:40]} 38. Ba5 {[%emt 0:00:56]} Nf5 {[%emt 0:01:01]} 39. Re1 {[%emt 0:01:47]} Kf8 {[%emt 0:02:59]} 40. f4 {[%emt 0:01:55]} Nd4 {[%emt 0:01:32]} 41. Kg3 {[%emt 0:00:39]} Re7 {[%emt 0:02:12]} 42. Kg4 {[%emt 0:00:56]} Kf7 {[%emt 0:02:36]} 43. Re4 {[%emt 0:01:03]} dxe5 {[%emt 0:01:50]} 44. fxe5 {[%emt 0:00:05]} Ne6 {[%emt 0:00:04]} 45. Re1 {[%emt 0:01:00]} Kg7 {[%emt 0:00:09]} 46. Kf3 {[%emt 0:00:51]} Ng5+ {[%emt 0:00:32]} 47. Kf4 {[%emt 0:00:17]} Ne6+ {[%emt 0:00:14]} 48. Ke4 {[%emt 0:00:06]} Rd7 {[%emt 0:00:23]} 49. Rf1 {[%emt 0:00:49]} c6 {[%emt 0:01:35]} 50. Rf6 {[%emt 0:00:38]} Re7 {[%emt 0:00:05]} 51. Bc3 {[%emt 0:00:58]} Re8 {[%emt 0:01:00]} 52. a3 {[%emt 0:00:23]} Re7 {[%emt 0:00:16]} 53. b4 {[%emt 0:01:02]} a6 {[%emt 0:00:22]} 54. Ke3 {[%emt 0:01:17]} Kh6 {[%emt 0:01:21]} 55. a4 {[%emt 0:00:56]} Kg5 {[%emt 0:00:47]} 56. Ke4 {[%emt 0:00:42]} Kh5 {[%emt 0:00:58]} 57. b5 {[%emt 0:01:10]} axb5 {[%emt 0:00:50]} 58. axb5 {[%emt 0:00:21]} Ng5+ {[%emt 0:01:09]} 59. Kd3 {[%emt 0:00:46]} cxb5 {[%emt 0:00:34]} 60. cxb5 {[%emt 0:00:05]} c4+ {[%emt 0:00:16]} 61. Ke3 {[%emt 0:01:09]} Ne6 {[%emt 0:02:15]} 62. b6 {[%emt 0:00:23]} Nd8 {[%emt 0:00:33]} 63. Ke4 {[%emt 0:00:57]} g5 {[%emt 0:00:35]} 64. Rf8 {[%emt 0:01:36]} Rd7 {[%emt 0:00:24]} 65. Kf5 {[%emt 0:01:14]} Kh4 {[%emt 0:00:19]} 66. Rh8+ {[%emt 0:00:21]} Kg3 {[%emt 0:00:06]} 67. e6 {[%emt 0:00:09]} Nxe6 {[%emt 0:00:10]} 68. Kxe6 {[%emt 0:00:07]} Rb7 {[%emt 0:00:04]} 69. Bd4 {[%emt 0:01:04]} g4 {[%emt 0:00:13]} 70. Kd5 {[%emt 0:00:37]} 1-0

[Event "Chinese Championship-B Men 2024"]
[Site "Liaocheng"]
[Date "2024.04.24"]
[Round "5.13"]
[White "Hong, Mingren"]
[Black "Cheng, Yuanda"]
[Result "1-0"]
[WhiteElo "1747"]
[BlackElo "2068"]
[PlyCount "119"]
[EventDate "2024.04.24"]
[EventType "swiss"]
[EventCountry "CHN"]
[TimeControl "5400+30"]

1. e4 {[%emt 0:00:05]} c5 {[%emt 0:00:04]} 2. Nf3 {[%emt 0:00:08]} Nc6 {[%emt 0:00:14]} 3. d4 {[%emt 0:00:09]} cxd4 {[%emt 0:00:04]} 4. Nxd4 {[%emt 0:00:07]} Nf6 {[%emt 0:00:02]} 5. Nc3 {[%emt 0:00:08]} d6 {[%emt 0:00:04]} 6. Bc4 {[%emt 0:00:31]} e6 {[%emt 0:00:06]} 7. Be3 {[%emt 0:00:27]} a6 {[%emt 0:00:13]} 8. Bb3 {[%emt 0:00:14]} Be7 {[%emt 0:00:09]} 9. O-O {[%emt 0:00:34]} O-O {[%emt 0:00:17]} 10. f4 {[%emt 0:00:31]} Bd7 {[%emt 0:02:57]} 11. f5 {[%emt 0:00:59]} Nxd4 {[%emt 0:01:28]} 12. Bxd4 {[%emt 0:00:07]} Qc7 {[%emt 0:00:40]} 13. Qf3 {[%emt 0:00:56]} b5 {[%emt 0:06:06]} 14. a3 {[%emt 0:00:09]} Rad8 {[%emt 0:10:28]} 15. Rad1 {[%emt 0:02:02]} a5 {[%emt 0:13:15]} 16. fxe6 {[%emt 0:00:40]} fxe6 {[%emt 0:00:08]} 17. Qh3 {[%emt 0:00:26]} Qc8 {[%emt 0:04:31]} 18. Nxb5 {[%emt 0:04:06]} d5 {[%emt 0:18:47]} 19. e5 {[%emt 0:04:59]} Bxb5 {[%emt 0:04:08]} 20. exf6 {[%emt 0:00:05]} Bxf6 {[%emt 0:02:42]} 21. Bxf6 {[%emt 0:02:17]} Rxf6 {[%emt 0:01:45]} 22. Rxf6 {[%emt 0:02:16]} gxf6 {[%emt 0:00:03]} 23. Qg3+ {[%emt 0:04:07]} Kh8 {[%emt 0:01:48]} 24. Qf2 {[%emt 0:00:05]} Rf8 {[%emt 0:01:39]} 25. c3 {[%emt 0:00:22]} Qb7 {[%emt 0:03:31]} 26. Bc2 {[%emt 0:01:33]} Qg7 {[%emt 0:03:28]} 27. g3 {[%emt 0:03:35]} f5 {[%emt 0:05:13]} 28. Qd4 {[%emt 0:03:30]} Qxd4+ {[%emt 0:03:22]} 29. cxd4 {[%emt 0:00:42]} Kg7 {[%emt 0:00:19]} 30. Kf2 {[%emt 0:00:49]} Rc8 {[%emt 0:00:07]} 31. Rd2 {[%emt 0:00:18]} Kf6 {[%emt 0:00:08]} 32. Ke3 {[%emt 0:00:32]} e5 {[%emt 0:00:46]} 33. dxe5+ {[%emt 0:00:04]} Kxe5 {[%emt 0:00:16]} 34. Bxf5 {[%emt 0:00:23]} Rc7 {[%emt 0:01:11]} 35. Bb1 {[%emt 0:04:31]} h6 {[%emt 0:03:56]} 36. Ba2 {[%emt 0:01:04]} Rc5 {[%emt 0:00:28]} 37. Bb3 {[%emt 0:03:48]} a4 {[%emt 0:01:13]} 38. Rc2 {[%emt 0:01:26]} Bc4 {[%emt 0:07:03]} 39. Bxa4 {[%emt 0:00:24]} Ra5 {[%emt 0:00:07]} 40. b3 {[%emt 0:00:55]} d4+ {[%emt 0:00:06]} 41. Kd2 {[%emt 0:00:16]} Be6 {[%emt 0:01:00]} 42. Rc7 {[%emt 0:01:57]} Ra8 {[%emt 0:00:39]} 43. Rc5+ {[%emt 0:00:09]} Kd6 {[%emt 0:00:09]} 44. Rh5 {[%emt 0:00:20]} Rf8 {[%emt 0:02:28]} 45. Kd3 {[%emt 0:00:37]} Rf3+ {[%emt 0:01:07]} 46. Kxd4 {[%emt 0:00:06]} Bxb3 {[%emt 0:00:12]} 47. Bxb3 {[%emt 0:00:35]} Rxb3 {[%emt 0:00:08]} 48. Rxh6+ {[%emt 0:00:04]} Ke7 {[%emt 0:00:05]} 49. Rh4 {[%emt 0:01:23]} Rxa3 {[%emt 0:00:33]} 50. Rf4 {[%emt 0:00:20]} Ke6 {[%emt 0:00:07]} 51. Ke4 {[%emt 0:00:12]} Rb3 {[%emt 0:00:06]} 52. Rf3 {[%emt 0:00:16]} Rb4+ {[%emt 0:00:18]} 53. Ke3 {[%emt 0:00:05]} Rb2 {[%emt 0:00:05]} 54. h4 {[%emt 0:00:32]} Ra2 {[%emt 0:00:05]} 55. Rf4 {[%emt 0:00:27]} Ra3+ {[%emt 0:00:40]} 56. Kf2 {[%emt 0:00:04]} Ke5 {[%emt 0:00:14]} 57. Kg2 {[%emt 0:00:17]} Ra8 {[%emt 0:00:06]} 58. Kh3 {[%emt 0:00:05]} Rh8 {[%emt 0:00:15]} 59. Rf1 {[%emt 0:00:03]} Rg8 {[%emt 0:00:50]} 60. h5 {[%emt 0:00:05]} 1-0

[Event "Chinese Championship-B Men 2024"]
[Site "Liaocheng"]
[Date "2024.04.24"]
[Round "5.15"]
[White "Chai, Xu Kang"]
[Black "Chan, Wang Ip Boris"]
[Result "1/2-1/2"]
[WhiteElo "1588"]
[BlackElo "2011"]
[PlyCount "86"]
[EventDate "2024.04.24"]
[EventType "swiss"]
[EventCountry "CHN"]
[TimeControl "5400+30"]

1. e4 {[%emt 0:00:13]} c5 {[%emt 0:00:22]} 2. Nf3 {[%emt 0:00:31]} d6 {[%emt 0:00:18]} 3. c3 {[%emt 0:00:46]} Nf6 {[%emt 0:00:44]} 4. h3 {[%emt 0:00:09]} Nbd7 {[%emt 0:00:59]} 5. Bd3 {[%emt 0:00:12]} e5 {[%emt 0:01:34]} 6. O-O {[%emt 0:00:08]} Be7 {[%emt 0:00:02]} 7. Bc2 {[%emt 0:00:07]} O-O {[%emt 0:00:50]} 8. d4 {[%emt 0:00:45]} Re8 {[%emt 0:02:49]} 9. Re1 {[%emt 0:00:12]} Bf8 {[%emt 0:02:03]} 10. Nbd2 {[%emt 0:01:48]} Qc7 {[%emt 0:00:59]} 11. Nf1 {[%emt 1:31:09]} a6 {[%emt 0:05:32]} 12. a4 {[%emt 0:00:00]} b6 {[%emt 0:05:05]} 13. Bg5 {[%emt 0:00:00]} h6 {[%emt 0:03:13]} 14. Bd2 {[%emt 0:00:00]} Bb7 {[%emt 0:06:34]} 15. d5 {[%emt 0:00:00]} b5 {[%emt 0:06:17]} 16. Qe2 {[%emt 0:00:00]} c4 {[%emt 0:05:30]} 17. Be3 {[%emt 0:00:00]} Reb8 {[%emt 0:07:34]} 18. Ng3 {[%emt 0:00:00]} Bc8 {[%emt 0:04:03]} 19. a5 {[%emt 0:00:00]} Nc5 {[%emt 0:03:12]} 20. Nh2 {[%emt 0:00:00]} Bd7 {[%emt 0:08:50]} 21. Ng4 {[%emt 0:00:00]} Nxg4 {[%emt 0:02:20]} 22. hxg4 {[%emt 0:00:00]} b4 {[%emt 0:12:00]} 23. Bxc5 {[%emt 0:00:00]} Qxc5 {[%emt 0:00:06]} 24. Ba4 {[%emt 0:00:00]} Bb5 {[%emt 0:03:05]} 25. Nf5 {[%emt 0:00:00]} Rc8 {[%emt 0:02:38]} 26. Qd2 {[%emt 0:00:00]} bxc3 {[%emt 0:02:01]} 27. bxc3 {[%emt 0:00:00]} Kh7 {[%emt 0:00:55]} 28. g5 {[%emt 0:00:00]} h5 {[%emt 0:00:16]} 29. g4 {[%emt 0:00:00]} Bxa4 {[%emt 0:05:35]} 30. Rxa4 {[%emt 0:00:00]} g6 {[%emt 0:04:55]} 31. Ne3 {[%emt 0:00:00]} hxg4 {[%emt 0:02:56]} 32. Nxc4 {[%emt 0:00:00]} Rab8 {[%emt 0:01:24]} 33. Kg2 {[%emt 0:00:00]} Kg7 {[%emt 0:00:40]} 34. Qe3 {[%emt 0:00:00]} Be7 {[%emt 0:00:57]} 35. Nb6 {[%emt 0:00:00]} Qxe3 {[%emt 0:00:50]} 36. Rxe3 {[%emt 0:00:00]} Rc7 {[%emt 0:00:00]} 37. Rg3 {[%emt 0:00:00]} Bxg5 {[%emt 0:00:06]} 38. Rxg4 {[%emt 0:00:00]} Bd2 {[%emt 0:00:52]} 39. Nc4 {[%emt 0:00:00]} Bxc3 {[%emt 0:00:30]} 40. Nxd6 {[%emt 0:00:00]} Kf8 {[%emt 0:00:52]} 41. Rh4 {[%emt 0:00:00]} Kg7 {[%emt 0:00:53]} 42. Rh3 {[%emt 0:00:00]} Bd4 {[%emt 0:00:37]} 43. Rf3 {[%emt 0:00:00]} Bc5 {[%emt 0:00:25]} 1/2-1/2

[Event "Chinese Championship-B Men 2024"]
[Site "Liaocheng"]
[Date "2024.04.24"]
[Round "6.1"]
[White "Zhang, Ziji"]
[Black "Zhang, Di"]
[Result "1/2-1/2"]
[WhiteElo "2392"]
[BlackElo "2303"]
[PlyCount "57"]
[EventDate "2024.04.24"]
[EventType "swiss"]
[EventCountry "CHN"]
[TimeControl "5400+30"]

1. d4 {[%emt 0:00:06]} d5 {[%emt 0:00:12]} 2. c4 {[%emt 0:00:32]} c6 {[%emt 0:00:06]} 3. Nc3 {[%emt 0:00:23]} Nf6 {[%emt 0:00:09]} 4. e3 {[%emt 0:00:24]} g6 {[%emt 0:00:23]} 5. Nf3 {[%emt 0:00:43]} Bg7 {[%emt 0:00:10]} 6. Be2 {[%emt 0:01:12]} O-O {[%emt 0:00:13]} 7. O-O {[%emt 0:00:13]} dxc4 {[%emt 0:00:09]} 8. Bxc4 {[%emt 0:00:12]} Bg4 {[%emt 0:00:10]} 9. h3 {[%emt 0:03:57]} Bxf3 {[%emt 0:00:09]} 10. Qxf3 {[%emt 0:00:05]} Nbd7 {[%emt 0:00:05]} 11. Rd1 {[%emt 0:00:29]} e5 {[%emt 0:00:06]} 12. d5 {[%emt 0:01:10]} e4 {[%emt 0:00:23]} 13. Nxe4 {[%emt 0:00:18]} Ne5 {[%emt 0:00:09]} 14. Nxf6+ {[%emt 0:01:33]} Bxf6 {[%emt 0:00:46]} 15. Qe2 {[%emt 0:02:52]} Nxc4 {[%emt 0:00:13]} 16. Qxc4 {[%emt 0:00:05]} cxd5 {[%emt 0:00:04]} 17. Rxd5 {[%emt 0:03:54]} Qc8 {[%emt 0:00:08]} 18. Qb3 {[%emt 0:12:35]} Rd8 {[%emt 0:02:30]} 19. Rxd8+ {[%emt 0:04:14]} Qxd8 {[%emt 0:00:12]} 20. e4 {[%emt 0:00:56]} Qd4 {[%emt 0:02:35]} 21. Be3 {[%emt 0:05:06]} Qxe4 {[%emt 0:00:21]} 22. Rd1 {[%emt 0:05:33]} Qc6 {[%emt 0:01:49]} 23. Rc1 {[%emt 0:01:45]} Qd7 {[%emt 0:00:17]} 24. Qc2 {[%emt 0:00:46]} a6 {[%emt 0:04:17]} 25. Qc7 {[%emt 0:07:24]} Qd5 {[%emt 0:07:22]} 26. Qc4 {[%emt 0:04:16]} Qd7 {[%emt 0:06:02]} 27. Qc7 {[%emt 0:00:14]} Qd5 {[%emt 0:00:04]} 28. Qc4 {[%emt 0:00:04]} Qd7 {[%emt 0:00:03]} 29. Qc7 1/2-1/2

[Event "Chinese Championship-B Men 2024"]
[Site "Liaocheng"]
[Date "2024.04.24"]
[Round "6.2"]
[White "Xi, Qi"]
[Black "Xie, Kaifan"]
[Result "1/2-1/2"]
[WhiteElo "2217"]
[BlackElo "2393"]
[PlyCount "60"]
[EventDate "2024.04.24"]
[EventType "swiss"]
[EventCountry "CHN"]
[TimeControl "5400+30"]

1. d4 {[%emt 0:02:45]} Nf6 {[%emt 0:00:03]} 2. c4 {[%emt 0:00:07]} e6 {[%emt 0:00:04]} 3. Nf3 {[%emt 0:00:04]} d5 {[%emt 0:00:05]} 4. Nc3 {[%emt 0:00:08]} Bb4 {[%emt 0:00:06]} 5. Qa4+ {[%emt 0:00:16]} Nc6 {[%emt 0:00:08]} 6. a3 {[%emt 0:00:08]} Bxc3+ {[%emt 0:00:14]} 7. bxc3 {[%emt 0:00:01]} Ne4 {[%emt 0:00:25]} 8. Bf4 {[%emt 0:00:12]} Nxc3 {[%emt 0:00:25]} 9. Qc2 {[%emt 0:00:07]} Ne4 {[%emt 0:00:03]} 10. e3 {[%emt 0:00:27]} h6 {[%emt 0:12:44]} 11. Bd3 {[%emt 0:01:53]} Nd6 {[%emt 0:01:36]} 12. c5 {[%emt 0:12:54]} Nf5 {[%emt 0:00:07]} 13. h3 {[%emt 0:03:18]} O-O {[%emt 0:02:00]} 14. O-O {[%emt 0:04:09]} Nfe7 {[%emt 0:04:16]} 15. Bb5 {[%emt 0:10:24]} a6 {[%emt 0:06:31]} 16. Bd3 {[%emt 0:01:10]} Bd7 {[%emt 0:12:44]} 17. Rab1 {[%emt 0:03:07]} b5 {[%emt 0:05:14]} 18. Qd2 {[%emt 0:12:33]} Be8 {[%emt 0:07:13]} 19. e4 {[%emt 0:09:06]} dxe4 {[%emt 0:04:32]} 20. Bxe4 {[%emt 0:00:06]} f5 {[%emt 0:00:36]} 21. Bc2 {[%emt 0:06:13]} Bh5 {[%emt 0:00:31]} 22. Bd1 {[%emt 0:01:18]} Qd7 {[%emt 0:04:34]} 23. Re1 {[%emt 0:10:50]} Bxf3 {[%emt 0:05:37]} 24. Bxf3 {[%emt 0:00:15]} Rad8 {[%emt 0:00:06]} 25. Be5 {[%emt 0:04:21]} Nxe5 {[%emt 0:01:45]} 26. Rxe5 {[%emt 0:00:09]} Nc6 {[%emt 0:04:04]} 27. Bxc6 {[%emt 0:00:14]} Qxc6 {[%emt 0:00:01]} 28. Rbe1 {[%emt 0:00:22]} Rfe8 {[%emt 0:00:44]} 29. Qe3 {[%emt 0:01:50]} Rd5 {[%emt 0:07:54]} 30. Rxe6 {[%emt 0:01:21]} Rxe6 {[%emt 0:21:08]} 1/2-1/2

[Event "Chinese Championship-B Men 2024"]
[Site "Liaocheng"]
[Date "2024.04.24"]
[Round "6.3"]
[White "Meng, Yihan"]
[Black "Xu, Wei"]
[Result "1-0"]
[WhiteElo "2042"]
[BlackElo "2047"]
[PlyCount "112"]
[EventDate "2024.04.24"]
[EventType "swiss"]
[EventCountry "CHN"]
[TimeControl "5400+30"]

1. e4 {[%emt 0:02:31]} Nf6 {[%emt 0:02:18]} 2. e5 {[%emt 0:00:15]} Nd5 {[%emt 0:00:10]} 3. c4 {[%emt 0:00:04]} Nb6 {[%emt 0:00:07]} 4. d4 {[%emt 0:00:06]} d6 {[%emt 0:00:05]} 5. exd6 {[%emt 0:00:06]} cxd6 {[%emt 0:00:06]} 6. Nc3 {[%emt 0:00:23]} g6 {[%emt 0:00:06]} 7. Be2 {[%emt 0:00:20]} Bg7 {[%emt 0:00:11]} 8. h3 {[%emt 0:01:15]} O-O {[%emt 0:00:07]} 9. Nf3 {[%emt 0:00:14]} Bf5 {[%emt 0:01:07]} 10. O-O {[%emt 0:00:32]} Nc6 {[%emt 0:00:05]} 11. d5 {[%emt 0:02:12]} Na5 {[%emt 0:00:43]} 12. Nd4 {[%emt 0:00:07]} Naxc4 {[%emt 0:00:16]} 13. Nxf5 {[%emt 0:00:03]} gxf5 {[%emt 0:00:09]} 14. a4 {[%emt 0:01:16]} a5 {[%emt 0:00:06]} 15. Re1 {[%emt 0:00:53]} Kh8 {[%emt 0:14:13]} 16. Qb3 {[%emt 0:14:59]} Rc8 {[%emt 0:05:18]} 17. Bg5 {[%emt 0:02:01]} Nxb2 {[%emt 0:12:29]} 18. Rac1 {[%emt 0:07:18]} Be5 {[%emt 0:20:40]} 19. Bb5 {[%emt 0:12:50]} Rg8 {[%emt 0:07:16]} 20. f4 {[%emt 0:18:45]} Bd4+ {[%emt 0:00:58]} 21. Kh1 {[%emt 0:02:04]} f6 {[%emt 0:06:38]} 22. Ne2 {[%emt 0:16:50]} Bf2 {[%emt 0:03:51]} 23. Rf1 {[%emt 0:00:45]} Rxc1 {[%emt 0:00:24]} 24. Nxc1 {[%emt 0:00:05]} N2xa4 {[%emt 0:05:57]} 25. Bxa4 {[%emt 0:17:06]} Nxa4 {[%emt 0:00:07]} 26. Qxa4 {[%emt 0:00:00]} Be3 {[%emt 0:05:25]} 27. Bh4 {[%emt 0:00:00]} Qc7 {[%emt 0:00:17]} 28. Ne2 {[%emt 0:00:00]} Qc5 {[%emt 0:01:08]} 29. Qd7 {[%emt 0:00:00]} Qxd5 {[%emt 0:00:29]} 30. Ng3 {[%emt 0:00:00]} Rg7 {[%emt 0:08:36]} 31. Qe8+ {[%emt 0:00:00]} Qg8 {[%emt 0:00:04]} 32. Qxg8+ {[%emt 0:00:00]} Rxg8 {[%emt 0:00:03]} 33. Nxf5 {[%emt 0:00:00]} Bc5 {[%emt 0:00:05]} 34. Nxe7 {[%emt 0:00:00]} Rf8 {[%emt 0:00:05]} 35. Ra1 {[%emt 0:00:00]} b6 {[%emt 0:00:21]} 36. g4 {[%emt 0:01:09]} Kg7 {[%emt 0:00:22]} 37. Kg2 {[%emt 0:00:46]} Ra8 {[%emt 0:01:15]} 38. Nd5 {[%emt 0:00:30]} a4 {[%emt 0:01:47]} 39. Bf2 {[%emt 0:01:43]} b5 {[%emt 0:00:59]} 40. Nc7 {[%emt 0:01:21]} Ra5 {[%emt 0:00:55]} 41. Ne6+ {[%emt 0:00:25]} Kf7 {[%emt 0:00:11]} 42. Nxc5 {[%emt 0:00:08]} dxc5 {[%emt 0:00:08]} 43. Bxc5 {[%emt 0:00:02]} Ke6 {[%emt 0:00:08]} 44. Ba3 {[%emt 0:00:52]} Ra6 {[%emt 0:00:37]} 45. Rc1 {[%emt 0:00:29]} Rb6 {[%emt 0:00:12]} 46. Bb4 {[%emt 0:00:07]} Ra6 {[%emt 0:00:52]} 47. Rc3 {[%emt 0:00:17]} Ra7 {[%emt 0:03:54]} 48. Kf3 {[%emt 0:01:09]} Kf7 {[%emt 0:01:37]} 49. Ke4 {[%emt 0:00:44]} Kg6 {[%emt 0:01:15]} 50. Kd5 {[%emt 0:00:28]} h5 {[%emt 0:00:12]} 51. Kc6 {[%emt 0:01:25]} hxg4 {[%emt 0:00:12]} 52. hxg4 {[%emt 0:00:01]} Ra8 {[%emt 0:00:16]} 53. Kxb5 {[%emt 0:00:19]} Rd8 {[%emt 0:00:48]} 54. Rc4 {[%emt 0:02:01]} Rd3 {[%emt 0:00:21]} 55. Kxa4 {[%emt 0:00:10]} Rg3 {[%emt 0:01:19]} 56. f5+ {[%emt 0:00:12]} Kf7 {[%emt 0:01:10]} 1-0